fUSD/lending_fUSD_20260227
["ID","MTS","AMOUNT","RATE_DAILY","PERIOD"]
[406798226,1772200243464,-151.0,0.0003185,7]
[406798227,1772200243473,-151.0,0.0003185,7]
[406798228,1772200243482,-246.873954,0.0003185,7]
[406798229,1772200243491,-151.0,0.0003185,7]
[406798230,1772200243503,-151.0,0.0003185,7]
[406798231,1772200243515,-151.0,0.0003185,7]
[406798232,1772200243524,-823.268375,0.0003185,7]
[406798233,1772200243532,-823.268375,0.0003185,7]
[406798234,1772200243542,-823.268375,0.0003185,7]
[406798235,1772200243551,-823.268375,0.0003185,7]
[406798236,1772200243559,-151.0,0.0003185,7]
[406798237,1772200243568,-151.0,0.0003185,7]
[406798238,1772200243577,-151.0,0.0003185,7]
[406798239,1772200243586,-151.0,0.0003185,7]
[406798240,1772200243596,-151.0,0.0003185,7]
[406798241,1772200243605,-151.0,0.0003185,7]
[406798242,1772200243613,-151.0,0.0003185,7]
[406798243,1772200243623,-509.0,0.00032024,17]
[406798244,1772200243632,-31627.44838156,0.00032044,2]
[406798245,1772200243641,-166.71361,0.000322,7]
[406798246,1772200243650,-166.71361,0.000322,7]
[406798247,1772200243660,-166.71361,0.000322,7]
[406798248,1772200243669,-166.71361,0.000322,7]
[406798249,1772200243679,-500.0,0.0003222,2]
[406798250,1772200243688,-1600.0,0.00032395,120]
[406798251,1772200243698,-151.0,0.000326,7]
[406798252,1772200243707,-151.0,0.000326,7]
[406798253,1772200243716,-289.80548,0.000326,7]
[406798254,1772200243726,-151.0,0.000326,7]
[406798255,1772200243735,-165.87,0.00032794,2]
[406798256,1772200243744,-151.0,0.00032877,31]
[406798257,1772200243754,-375.95495348,0.00032877,5]
[406798258,1772200243763,-562.18013926,0.00032877,5]
[406798259,1772200243772,-203958.14346867,0.000329,20]
[406798260,1772200243798,-11737.65924844,0.000329,20]
[406798261,1772200243809,-1051.74850456,0.000329,20]
[406798262,1772200243821,-7087.44877833,0.000329,20]
[406798263,1772200243830,-7049.97,0.000329,2]
[406798264,1772200243839,-742.26,0.000329,14]
[406798265,1772200243852,-1557.82122168,0.000329,14]
[406798266,1772200243864,-639.31888652,0.000329,14]
[406798267,1772200243876,-483.3098918,0.000329,14]
[406798268,1772200243886,-313.24997459,0.000329,14]
[406798269,1772200243897,-4264.19002541,0.000329,14]
[406798270,1772200243907,-667.96197469,0.000329,30]
[406798271,1772200243919,-51.50802531,0.000329,30]
[406798272,1772200243929,-234.129705,0.000329,31]
[406798273,1772200243938,-234.129705,0.000329,31]
[406798274,1772200243948,-234.129705,0.000329,31]
[406798275,1772200243958,-234.129705,0.000329,31]
[406798276,1772200243967,-471.662118,0.000329,31]
[406798277,1772200243977,-471.662118,0.000329,31]
[406798278,1772200243986,-471.662118,0.000329,31]
[406798279,1772200243996,-421.61105608,0.000329,31]
[406798280,1772200244093,-749.64000008,0.00027453,2]
[406798281,1772200244111,-1278.55507638,0.00027453,2]
[406798282,1772200244123,-427.80492354,0.00027453,2]
[406798283,1772200244133,-2456.0,0.00030453,2]
[406798284,1772200244143,-50.05106192,0.000329,31]
[406798285,1772200244153,-577.185408,0.000329,7]
[406798286,1772200244162,-577.185408,0.000329,7]
[406798287,1772200244172,-577.185408,0.000329,7]
[406798288,1772200244181,-577.185408,0.000329,7]
[406798289,1772200244190,-151.0,0.000329,31]
[406798290,1772200244199,-433.38854,0.000329,31]
[406798291,1772200244209,-433.38854,0.000329,31]
[406798292,1772200244218,-433.38854,0.000329,31]
[406798293,1772200244228,-433.38854,0.000329,31]
[406798294,1772200244238,-151.0,0.000329,30]
[406798295,1772200244247,-162.492537,0.000329,30]
[406798296,1772200244257,-151.0,0.000329,31]
[406798297,1772200244272,-151.0,0.000329,31]
[406798298,1772200244281,-151.0,0.000329,31]
[406798299,1772200244291,-151.0,0.000329,31]
[406798300,1772200244300,-1340.0,0.00033453,2]
[406798301,1772200244310,-618.0,0.00033453,2]
[406798302,1772200244319,-413.0,0.00033453,2]
[406798303,1772200244328,-1401.11075345,0.00033453,2]
[406798304,1772200244340,-331.275,0.00033453,2]
[406798305,1772200244351,-2840.61424655,0.00033453,2]
[406798306,1772200244360,-3210.26617599,0.0003385,2]
[406798307,1772200244369,-300.0,0.00033949,10]
[406798308,1772200244378,-59255.96165671,0.0003395,20]
[406798309,1772200244389,-6947.05478971,0.0003395,20]
[406798310,1772200244400,-4783.16358,0.0003395,20]
[406798311,1772200244410,-412.0,0.0003395,20]
[406798312,1772200244442,-160.0,0.00024526,2]
[406798313,1772200244451,-963.42602351,0.0003395,20]
[406798314,1772200245231,-824.0,9.348e-05,2]
[406798315,1772200245242,-19176.02,9.348e-05,2]
[406798316,1772200245252,-266.180693,0.0003185,7]
[406798317,1772200245261,-2456.0,0.00033453,2]
[406798318,1772200245272,-151473.39395007,0.0003395,20]
[406798319,1772200245281,-151.0,0.0003395,31]
[406798320,1772200245290,-151.0,0.0003395,31]
[406798321,1772200245299,-151.0,0.0003395,31]
[406798322,1772200245309,-151.0,0.0003395,31]
[406798323,1772200245318,-668.0,0.0003395,30]
[406798324,1772200245328,-1048.0,0.0003395,30]
[406798325,1772200245338,-291.99,0.00034047,60]
[406798326,1772200245347,-2158.42,0.000345,30]
[406798327,1772200245357,-2008.571,0.00034585,39]
[406798328,1772200245366,-288.718,0.00034585,39]
[406798329,1772200245375,-1500.0,0.00034795,2]
[406798330,1772200245385,-7049.97,0.000349,2]
[406798331,1772200245394,-2680.45,0.000349,14]
[406798332,1772200245403,-4577.44,0.000349,14]
[406798335,1772200245413,-31627.44838156,0.000349,2]
[406798337,1772200245422,-300.0,0.00034999,10]
[406798338,1772200245435,-322.79728336,0.00034999,30]
[406798339,1772200245444,-223835.0,0.00035,20]
[406798340,1772200245453,-742.26,0.00035,14]
[406798341,1772200245463,-200.0,0.00035,3]
[406798342,1772200245471,-500.0,0.00035,7]
[406798343,1772200245480,-500.0,0.00035028,2]
[406798344,1772200245490,-614.0,0.00035167,2]
[406798345,1772200245501,-150.0,0.00035167,2]
[406798346,1772200245510,-150.0,0.00035167,2]
[406798347,1772200245521,-150.0,0.00035167,2]
[406798348,1772200245530,-241.0,0.00035167,2]
[406798349,1772200245540,-1600.0,0.0003534,120]
[406798350,1772200245549,-509.0,0.00035451,20]
[406798351,1772200245558,-152.0,0.00035538,3]
[406798352,1772200245567,-283.45895579,0.00035589,30]
[406798353,1772200245576,-201.25585861,0.00035589,30]
[406798354,1772200245586,-155.0,0.00035612,2]
[406798355,1772200245595,-151.0,0.00035616,31]
[406798356,1772200245604,-455.69291,0.00035888,30]
[406798357,1772200245613,-1000.0,0.00036,120]
[406798358,1772200245622,-800.0,0.00036,120]
[406798359,1772200245631,-583.0,0.00036,120]
[406798360,1772200245640,-1925.6,0.00036021,10]
[406798361,1772200245649,-25000.0,0.00036027,10]
[406798362,1772200245658,-108079.3329678,0.0003605,20]
[406798363,1772200245677,-510.13958758,0.0003605,20]
[406798364,1772200245689,-487.45793741,0.0003605,20]
[406798365,1772200245703,-2783.37,0.0003605,20]
[406798366,1772200245714,-265.60627094,0.0003605,20]
[406798367,1772200245726,-1230.62946903,0.0003605,20]
[406798368,1772200245737,-110478.46376724,0.0003605,20]
[406798369,1772200245747,-234.129705,0.0003605,31]
[406798370,1772200245755,-234.129705,0.0003605,31]
[406798371,1772200245765,-234.129705,0.0003605,31]
[406798372,1772200245774,-234.129705,0.0003605,31]
[406798373,1772200245783,-471.662118,0.0003605,31]
[406798374,1772200245791,-471.662118,0.0003605,31]
[406798375,1772200245800,-471.662118,0.0003605,31]
[406798376,1772200245809,-471.662118,0.0003605,31]
[406798377,1772200245819,-151.0,0.0003605,31]
[406798378,1772200245828,-151.0,0.0003605,31]
[406798379,1772200245836,-166.71361,0.0003605,31]
[406798380,1772200245846,-166.71361,0.0003605,31]
[406798381,1772200245855,-166.71361,0.0003605,31]
[406798382,1772200245864,-166.71361,0.0003605,31]
[406798383,1772200245875,-151.0,0.0003605,31]
[406798384,1772200245884,-151.0,0.0003605,31]
[406798385,1772200245893,-151.0,0.0003605,31]
[406798386,1772200245902,-151.0,0.0003605,31]
[406798387,1772200245912,-151.0,0.0003605,31]
[406798388,1772200245921,-151.0,0.0003605,31]
[406798389,1772200245930,-151.0,0.0003605,31]
[406798390,1772200245939,-823.268375,0.0003605,31]
[406798391,1772200245948,-577.185408,0.0003605,7]
[406798392,1772200245957,-823.268375,0.0003605,31]
[406798393,1772200245967,-577.185408,0.0003605,7]
[406798394,1772200245976,-823.268375,0.0003605,31]
[406798395,1772200245985,-577.185408,0.0003605,7]
[406798396,1772200245994,-823.268375,0.0003605,31]
[406798397,1772200246004,-577.185408,0.0003605,7]
[406798398,1772200246015,-151.0,0.0003605,31]
[406798399,1772200246025,-433.38854,0.0003605,31]
[406798400,1772200246034,-433.38854,0.0003605,31]
[406798401,1772200246043,-433.38854,0.0003605,31]
[406798402,1772200246052,-433.38854,0.0003605,31]
[406798403,1772200246062,-151.0,0.0003605,30]
[406798404,1772200246072,-151.0,0.0003605,31]
[406798405,1772200246081,-151.0,0.0003605,31]
[406798406,1772200246091,-151.0,0.0003605,31]
[406798407,1772200246100,-290.634165,0.0003605,31]
[406798408,1772200246110,-259.157243,0.0003605,31]
[406798409,1772200246120,-151.0,0.0003605,14]
[406798410,1772200246129,-151.0,0.0003605,14]
[406798411,1772200246138,-151.0,0.0003605,14]
[406798412,1772200246147,-151.0,0.0003605,31]
[406798413,1772200246157,-151.0,0.0003605,31]
[406798414,1772200246166,-266.180693,0.0003605,31]
[406798415,1772200246174,-36198.14752852,0.0003605,2]
[406798416,1772200246186,-329.7,0.0003605,2]
[406798417,1772200246197,-11721.78155764,0.0003605,2]
[406798419,1772200246208,-793.1136,0.0003605,2]
[406798421,1772200246227,-266.180693,0.0003185,7]
[406798422,1772200246237,-335.819307,0.0003605,2]
[406798423,1772200246248,-881.45672485,0.0003605,2]
[406798424,1772200246259,-7868.11899168,0.0003605,2]
[406798425,1772200246271,-445.5,0.0003605,2]
[406798426,1772200246366,-4078.24831882,0.0003605,2]
[406798427,1772200246378,-933.0021565,0.0003605,2]
[406798428,1772200299621,200.0,9e-05,3]
[406798429,1772200489478,2047.94153617,8.9e-05,3]
[406798430,1772200800704,9460.07140544,8e-05,2]
[406798434,1772201064918,538.65,8e-05,2]
[406798439,1772201242199,400.0,8.7e-05,3]
[406798440,1772201244348,900.0,8.8e-05,3]
[406798441,1772201246505,1400.0,8.9e-05,3]
[406798442,1772201248629,1900.0,9e-05,3]
[406798461,1772201431837,-500.0,8.2e-05,2]
[406798462,1772201431848,-160.66,8.2e-05,2]
[406798463,1772201431857,-195.0,8.418e-05,2]
[406798464,1772201431867,-1852.42,8.538e-05,2]
[406798465,1772201431876,-159.05,8.549e-05,2]
[406798466,1772201431886,-8384.3701247,8.636e-05,2]
[406798467,1772201431897,-22526.65599496,8.636e-05,2]
[406798469,1772201431909,-120888.71126027,8.636e-05,2]
[406798482,1772201437835,-583.72885539,8.636e-05,2]
[406798483,1772201437846,-925.48761476,8.636e-05,2]
[406798484,1772201438001,-301.76454383,8.636e-05,2]
[406798485,1772201438013,-1846389.28160609,8.636e-05,2]
[406798486,1772201438024,-1500.0,8.67e-05,2]
[406798487,1772201438034,-150.0,8.692e-05,2]
[406798488,1772201438043,-150.0,8.692e-05,2]
[406798489,1772201438052,-1000.0,8.704e-05,2]
[406798491,1772201438061,-1500000.0,8.719e-05,2]
[406798492,1772201438071,-1063.37067778,8.719e-05,2]
[406798494,1772201438080,-14398.02636703,8.719e-05,2]
[406798496,1772201438089,-203.69193972,8.719e-05,2]
[406798499,1772201438099,-1063.37067776,8.728e-05,2]
[406798500,1772201438108,-1063.37067776,8.736e-05,2]
[406798502,1772201438117,-54664.91,8.736e-05,2]
[406798504,1772201438126,-283.90698305,8.747e-05,2]
[406798506,1772201438135,-166.66,8.764e-05,2]
[406798508,1772201438144,-1606.856,8.819e-05,2]
[406798510,1772201438154,-262.957,8.819e-05,2]
[406798512,1772201438163,-187.0,8.845e-05,2]
[406798514,1772201438172,-22936.85137874,8.89e-05,2]
[406798516,1772201438182,-2500.0,8.899e-05,2]
[406798518,1772201438191,-150.0,8.999e-05,2]
[406798521,1772201438205,-250.0,9.02e-05,2]
[406798523,1772201438214,-195.0,9.02e-05,2]
[406798525,1772201438224,-250.0,9.02e-05,2]
[406798527,1772201438233,-250.0,9.02e-05,2]
[406798529,1772201438243,-166.66,9.054e-05,2]
[406798531,1772201438253,-1436.24881477,9.084e-05,2]
[406798533,1772201438263,-32436.5772,9.099e-05,2]
[406798535,1772201438272,-166.66,9.343e-05,2]
[406798537,1772201438282,-10000.0,9.448e-05,2]
[406798539,1772201438291,-248.765124,9.472e-05,2]
[406798541,1772201438302,-150.0,9.507e-05,2]
[406798543,1772201438311,-150.0,9.507e-05,2]
[406798545,1772201438321,-150.0,9.562e-05,2]
[406798547,1772201438330,-150.0,9.562e-05,2]
[406798549,1772201438339,-177.0,9.617e-05,2]
[406798552,1772201438349,-200.0,9.617e-05,2]
[406798554,1772201438358,-159.05,9.618e-05,2]
[406798555,1772201438367,-166.66,9.632e-05,2]
[406798557,1772201438377,-150.0,9.726e-05,2]
[406798560,1772201438386,-468.0,9.726e-05,2]
[406798561,1772201438396,-150.0,9.726e-05,2]
[406798562,1772201438406,-500.0,9.726e-05,2]
[406798563,1772201438415,-249.73245123,9.726e-05,2]
[406798565,1772201438424,-150.0,9.781e-05,2]
[406798567,1772201438433,-468.0,9.781e-05,2]
[406798569,1772201438443,-150.0,9.781e-05,2]
[406798571,1772201438452,-560.0,9.781e-05,2]
[406798573,1772201438461,-500.0,9.781e-05,2]
[406798575,1772201438471,-1000.0,9.792e-05,2]
[406798577,1772201438480,-150.0,9.836e-05,2]
[406798579,1772201438489,-468.0,9.836e-05,2]
[406798581,1772201438498,-200.0,9.836e-05,2]
[406798583,1772201438508,-150.0,9.89e-05,2]
[406798585,1772201438516,-468.0,9.89e-05,2]
[406798587,1772201438526,-166.66,9.922e-05,2]
[406798589,1772201438535,-150.0,9.945e-05,2]
[406798591,1772201438544,-468.0,9.945e-05,2]
[406798593,1772201438554,-1509.21,9.97e-05,2]
[406798595,1772201438563,-250.0,0.0001,2]
[406798597,1772201438572,-468.0,0.0001,2]
[406798599,1772201438582,-1348.05098994,0.0001,2]
[406798600,1772201438591,-151.0,0.0001,2]
[406798601,1772201438601,-151.0,0.0001,2]
[406798602,1772201438610,-151.0,0.0001,2]
[406798603,1772201438620,-151.0,0.0001,2]
[406798604,1772201438629,-151.0,0.0001,2]
[406798605,1772201438639,-151.0,0.0001,2]
[406798606,1772201438649,-151.0,0.0001,2]
[406798607,1772201438658,-151.0,0.0001,2]
[406798608,1772201438667,-151.0,0.0001,2]
[406798609,1772201438676,-151.0,0.0001,2]
[406798610,1772201438686,-151.0,0.0001,2]
[406798611,1772201438695,-1053.03002661,0.0001,2]
[406798612,1772201438705,-151.0,0.0001,2]
[406798613,1772201438714,-151.0,0.0001,2]
[406798614,1772201438723,-151.0,0.0001,2]
[406798615,1772201438735,-151.0,0.0001,2]
[406798616,1772201438747,-151.0,0.0001,2]
[406798617,1772201438756,-151.0,0.0001,2]
[406798618,1772201438765,-151.0,0.0001,2]
[406798619,1772201438775,-151.0,0.0001,2]
[406798620,1772201438785,-151.0,0.0001,2]
[406798621,1772201438794,-151.0,0.0001,2]
[406798622,1772201438806,-151.0,0.0001,2]
[406798623,1772201438815,-151.0,0.0001,2]
[406798624,1772201438824,-151.0,0.0001,2]
[406798625,1772201438834,-151.0,0.0001,2]
[406798626,1772201438843,-151.0,0.0001,2]
[406798627,1772201438853,-151.0,0.0001,2]
[406798628,1772201438862,-151.0,0.0001,2]
[406798629,1772201438871,-151.0,0.0001,2]
[406798630,1772201438880,-151.0,0.0001,2]
[406798631,1772201438889,-337.0,0.0001,2]
[406798632,1772201438898,-419.22132892,0.0001,2]
[406798633,1772201438908,-419.22132892,0.0001,2]
[406798634,1772201438917,-337.0,0.0001,2]
[406798635,1772201438926,-338.83518363,0.0001,2]
[406798636,1772201438935,-468.0,0.00010055,2]
[406798637,1772201438945,-7950.13,0.00010074,2]
[406798638,1772201438954,-468.0,0.0001011,2]
[406798639,1772201438964,-468.0,0.00010164,2]
[406798640,1772201438973,-166.66,0.00010211,2]
[406798641,1772201438983,-468.0,0.00010219,2]
[406798642,1772201438991,-468.0,0.00010274,2]
[406798643,1772201439001,-500.0,0.000103,2]
[406798644,1772201439011,-812.80444789,0.000103,2]
[406798645,1772201439019,-500.0,0.000103,2]
[406798646,1772201439029,-500.0,0.000103,2]
[406798647,1772201439038,-699.99,0.000103,2]
[406798648,1772201439047,-500.0,0.000103,2]
[406798649,1772201439057,-500.0,0.000103,2]
[406798650,1772201439066,-500.0,0.000103,2]
[406798651,1772201439075,-500.0,0.000103,2]
[406798652,1772201439084,-500.0,0.000103,2]
[406798653,1772201439094,-611.11529278,0.000103,2]
[406798654,1772201439103,-500.0,0.000103,2]
[406798655,1772201439113,-500.0,0.000103,2]
[406798656,1772201439122,-636.56274826,0.000103,2]
[406798657,1772201439131,-500.0,0.000103,2]
[406798658,1772201439141,-671.44542235,0.000103,2]
[406798659,1772201439150,-500.0,0.000103,2]
[406798660,1772201439158,-500.0,0.000103,2]
[406798661,1772201439167,-500.0,0.000103,2]
[406798662,1772201439176,-500.0,0.000103,2]
[406798663,1772201439185,-500.0,0.000103,2]
[406798664,1772201439194,-500.0,0.000103,2]
[406798665,1772201439204,-500.0,0.000103,2]
[406798666,1772201439213,-977.54963407,0.000103,2]
[406798667,1772201439222,-700.0,0.000103,2]
[406798668,1772201439231,-700.0,0.000103,2]
[406798669,1772201439240,-700.0,0.000103,2]
[406798670,1772201439249,-700.0,0.000103,2]
[406798671,1772201439258,-700.0,0.000103,2]
[406798672,1772201439267,-700.0,0.000103,2]
[406798673,1772201439276,-700.0,0.000103,2]
[406798674,1772201439285,-700.0,0.000103,2]
[406798675,1772201439295,-700.0,0.000103,2]
[406798676,1772201439307,-700.0,0.000103,2]
[406798677,1772201439316,-700.0,0.000103,2]
[406798678,1772201439325,-700.0,0.000103,2]
[406798679,1772201439334,-753.13710309,0.000103,2]
[406798680,1772201439347,-500.0,0.000103,2]
[406798681,1772201439357,-500.0,0.000103,2]
[406798682,1772201439367,-500.0,0.000103,2]
[406798683,1772201439376,-500.0,0.000103,2]
[406798684,1772201439386,-468.0,0.00010329,2]
[406798685,1772201439396,-468.0,0.00010384,2]
[406798686,1772201439406,-13700.0,0.00010401,2]
[406798687,1772201439416,-468.0,0.00010438,2]
[406798688,1772201439426,-999.99,0.00010475,2]
[406798689,1772201439436,-9999.99,0.00010475,2]
[406798690,1772201439445,-299.99,0.00010475,2]
[406798691,1772201439455,-9999.99,0.00010475,2]
[406798692,1772201439464,-150.99,0.00010475,2]
[406798693,1772201439474,-9999.99,0.00010475,2]
[406798694,1772201439485,-348.44,0.00010475,2]
[406798695,1772201439495,-4312.84,0.00010475,2]
[406798697,1772201439504,-150.99,0.00010475,2]
[406798698,1772201439514,-9999.99,0.00010475,2]
[406798699,1772201439523,-468.0,0.00010493,2]
[406798700,1772201439532,-468.0,0.00010548,2]
[406798701,1772201439544,-468.0,0.00010603,2]
[406798702,1772201439555,-468.0,0.00010658,2]
[406798703,1772201439564,-159.05,0.00010687,2]
[406798704,1772201439573,-468.0,0.00010712,2]
[406798705,1772201439582,-468.0,0.00010767,2]
[406798706,1772201439592,-187.270847,0.00010771,2]
[406798707,1772201439602,-468.0,0.00010822,2]
[406798708,1772201439611,-500.0,0.00010829,2]
[406798709,1772201439620,-468.0,0.00010877,2]
[406798710,1772201439630,-1000.0,0.0001088,2]
[406798711,1772201439639,-2567.89189096,0.000109,2]
[406798712,1772201439648,-468.0,0.00010931,2]
[406798713,1772201439657,-557.77,0.0001095,2]
[406798714,1772201439835,-12049.23,0.00010959,2]
[406798715,1772201439846,-150.0,0.00010959,2]
[406798716,1772201439856,-486.0,0.00010986,2]
[406798717,1772201439865,-28193.52890243,0.00011099,2]
[406798718,1772201439874,-28193.52890243,0.00011099,2]
[406798719,1772201439885,-28193.52890243,0.00011099,2]
[406798720,1772201439894,-310.956405,0.00011366,2]
[406798721,1772201439903,-1000.0,0.00011377,2]
[406798722,1772201439913,-4906.09,0.00011507,2]
[406798723,1772201439922,-5513.8,0.00011727,2]
[406798725,1772201439932,-159.05,0.00011755,2]
[406798727,1772201439941,-168.01,0.00011836,2]
[406798728,1772201439950,-28193.52890243,0.00011913,2]
[406798729,1772201439960,-1320.22794059,0.00011924,2]
[406798730,1772201439969,-1000.0,0.00011968,2]
[406798731,1772201439978,-6819.86011,0.00012449,2]
[406798732,1772201439988,-159.05,0.00012824,2]
[406798733,1772201439997,-500.0,0.0001289,2]
[406798734,1772201440007,-500.0,0.0001289,2]
[406798735,1772201440016,-500.0,0.0001289,2]
[406798736,1772201440027,-500.0,0.0001289,2]
[406798737,1772201440036,-500.0,0.0001289,2]
[406798738,1772201440046,-504.04222443,0.0001289,2]
[406798739,1772201440056,-851.56555211,0.0001289,2]
[406798740,1772201440066,-500.0,0.0001289,2]
[406798741,1772201440075,-500.0,0.0001289,2]
[406798742,1772201440084,-500.0,0.0001289,2]
[406798743,1772201440094,-500.0,0.0001289,2]
[406798744,1772201440103,-500.0,0.0001289,2]
[406798745,1772201440114,-500.0,0.0001289,2]
[406798746,1772201440124,-500.0,0.0001289,2]
[406798747,1772201440135,-500.0,0.0001289,2]
[406798748,1772201440146,-500.0,0.0001289,2]
[406798749,1772201440156,-500.0,0.0001289,2]
[406798750,1772201440166,-500.0,0.0001289,2]
[406798751,1772201440177,-500.0,0.0001289,2]
[406798752,1772201440187,-500.0,0.0001289,2]
[406798753,1772201440196,-500.0,0.0001289,2]
[406798754,1772201440206,-500.0,0.0001289,2]
[406798755,1772201440215,-500.0,0.0001289,2]
[406798756,1772201440224,-500.0,0.0001289,2]
[406798757,1772201440233,-500.0,0.0001289,2]
[406798758,1772201440243,-700.0,0.0001289,2]
[406798759,1772201440253,-500.0,0.0001289,2]
[406798760,1772201440263,-700.0,0.0001289,2]
[406798761,1772201440272,-500.0,0.0001289,2]
[406798762,1772201440281,-700.0,0.0001289,2]
[406798763,1772201440290,-500.0,0.0001289,2]
[406798764,1772201440300,-700.0,0.0001289,2]
[406798765,1772201440310,-500.0,0.0001289,2]
[406798766,1772201440319,-500.0,0.0001289,2]
[406798767,1772201440329,-700.0,0.0001289,2]
[406798768,1772201440338,-500.0,0.0001289,2]
[406798769,1772201440348,-700.0,0.0001289,2]
[406798770,1772201440357,-700.0,0.0001289,2]
[406798771,1772201440367,-700.0,0.0001289,2]
[406798772,1772201440376,-700.0,0.0001289,2]
[406798773,1772201440385,-700.0,0.0001289,2]
[406798774,1772201440395,-700.0,0.0001289,2]
[406798775,1772201440404,-700.0,0.0001289,2]
[406798776,1772201440413,-700.0,0.0001289,2]
[406798777,1772201440423,-700.0,0.0001289,2]
[406798778,1772201440432,-439.0,0.0001289,2]
[406798779,1772201440441,-500.0,0.0001289,2]
[406798780,1772201440450,-500.0,0.0001289,2]
[406798781,1772201440460,-500.0,0.0001289,2]
[406798782,1772201440469,-500.0,0.0001289,2]
[406798783,1772201440479,-500.0,0.0001289,2]
[406798784,1772201440488,-500.0,0.0001289,2]
[406798785,1772201440497,-500.0,0.0001289,2]
[406798786,1772201440508,-28193.52890243,0.00012911,2]
[406798787,1772201440517,-174.65,0.00013,2]
[406798788,1772201440527,-1000.0,0.00013056,2]
[406798789,1772201440536,-2567.89189091,0.00013087,2]
[406798790,1772201440551,-818.054752,0.00013319,2]
[406798791,1772201440561,-3240.0,0.00013425,2]
[406798792,1772201440570,-224.725016,0.00013463,2]
[406798793,1772201440580,-524.394073,0.00013463,2]
[406798794,1772201440589,-14003.59222695,0.0001358,2]
[406798795,1772201440598,-500.0,0.00013698,2]
[406798796,1772201440607,-1586.97413421,0.00013698,2]
[406798797,1772201440617,-917.91915087,0.00013698,2]
[406798798,1772201440626,-8961.50435011,0.00013698,2]
[406798799,1772201440636,-425.09831696,0.00013698,2]
[406798800,1772201440645,-500.0,0.00013698,2]
[406798801,1772201440654,-500.0,0.00013698,2]
[406798802,1772201440664,-500.0,0.00013698,2]
[406798803,1772201440673,-500.0,0.00013698,2]
[406798804,1772201440682,-500.0,0.00013698,2]
[406798805,1772201440692,-500.0,0.00013698,2]
[406798806,1772201440701,-500.0,0.00013698,2]
[406798807,1772201440710,-500.0,0.00013698,2]
[406798808,1772201440720,-500.0,0.00013698,2]
[406798809,1772201440730,-500.0,0.00013698,2]
[406798810,1772201440741,-500.0,0.00013698,2]
[406798811,1772201440752,-500.0,0.00013698,2]
[406798812,1772201440761,-500.0,0.00013698,2]
[406798813,1772201440771,-500.0,0.00013698,2]
[406798814,1772201440781,-500.0,0.00013698,2]
[406798815,1772201440790,-500.0,0.00013698,2]
[406798816,1772201440799,-500.0,0.00013698,2]
[406798817,1772201440809,-500.0,0.00013698,2]
[406798818,1772201440819,-500.0,0.00013698,2]
[406798819,1772201440829,-500.0,0.00013698,2]
[406798820,1772201440841,-500.0,0.00013698,2]
[406798821,1772201440850,-500.0,0.00013698,2]
[406798822,1772201440859,-500.0,0.00013698,2]
[406798823,1772201440869,-500.0,0.00013698,2]
[406798824,1772201440880,-500.0,0.00013698,2]
[406798825,1772201440890,-278.70046284,0.00013698,2]